[Event "Titled Tuesday Blitz February 28 Early 2023"]
[White "Shimanov, Aleksandr"]
[Black "Koelle, Tobias"]
[WhiteFideId "4198603"]
[BlackFideId "16207378"]
[WhiteElo "2631"]
[BlackElo "2497"]
[Result "0-1"]
[Round "10"]
[TimeControl "180+2"]
[Date "2023.02.28"]
[WhiteClock "0:00:03"]
[BlackClock "0:00:22"]

1. e4 {[%clk 0:03:00]}  g6 {[%clk 0:02:54]} 2. d4 {[%clk 0:02:58]}  Bg7 {[%clk 0:02:54]} 3. c4 {[%clk 0:02:57]}  d6 {[%clk 0:02:49]} 4. Nc3 {[%clk 0:02:56]}  e5 {[%clk 0:02:47]} 5. d5 {[%clk 0:02:53]}  Qe7 {[%clk 0:02:46]} 6. Bd3 {[%clk 0:02:39]}  Na6 {[%clk 0:02:37]} 7. Nge2 {[%clk 0:02:38]}  f5 {[%clk 0:02:37]} 8. exf5 {[%clk 0:02:29]}  gxf5 {[%clk 0:02:38]} 9. Ng3 {[%clk 0:02:29]}  e4 {[%clk 0:02:34]} 10. Be2 {[%clk 0:02:29]}  Nf6 {[%clk 0:02:33]} 11. Nh5 {[%clk 0:02:29]}  O-O {[%clk 0:02:30]} 12. Nxg7 {[%clk 0:02:26]}  Qxg7 {[%clk 0:02:31]} 13. g3 {[%clk 0:02:26]}  Nc5 {[%clk 0:02:30]} 14. Be3 {[%clk 0:02:20]}  Qg6 {[%clk 0:02:24]} 15. Qd2 {[%clk 0:02:16]}  Bd7 {[%clk 0:02:19]} 16. O-O-O {[%clk 0:02:15]}  a6 {[%clk 0:02:19]} 17. h3 {[%clk 0:02:02]}  b5 {[%clk 0:02:17]} 18. b4 {[%clk 0:01:57]}  Nd3+ {[%clk 0:02:03]} 19. Bxd3 {[%clk 0:01:57]}  exd3 {[%clk 0:02:03]} 20. Qxd3 {[%clk 0:01:25]}  a5 {[%clk 0:02:02]} 21. Nxb5 {[%clk 0:01:17]}  Bxb5 {[%clk 0:02:02]} 22. cxb5 {[%clk 0:01:18]}  axb4 {[%clk 0:02:03]} 23. Rd2 {[%clk 0:01:11]}  Ra3 {[%clk 0:01:53]} 24. Qd4 {[%clk 0:01:09]}  b3 {[%clk 0:01:48]} 25. axb3 {[%clk 0:00:52]}  Rfa8 {[%clk 0:01:48]} 26. Rdd1 {[%clk 0:00:18]}  f4 {[%clk 0:01:43]} 27. gxf4 {[%clk 0:00:14]}  Ra1+ {[%clk 0:01:19]} 28. Kb2 {[%clk 0:00:14]}  R8a2+ {[%clk 0:01:18]} 29. Kc3 {[%clk 0:00:15]}  Qc2+ {[%clk 0:01:19]} 30. Kb4 {[%clk 0:00:14]}  Rxd1 {[%clk 0:01:07]} 31. Rxd1 {[%clk 0:00:12]}  Rb2 {[%clk 0:00:55]} 32. Rg1+ {[%clk 0:00:11]}  Kf7 {[%clk 0:00:55]} 33. Qc4 {[%clk 0:00:12]}  Qxc4+ {[%clk 0:00:49]} 34. Kxc4 {[%clk 0:00:12]}  Rc2+ {[%clk 0:00:50]} 35. Kd3 {[%clk 0:00:11]}  Rb2 {[%clk 0:00:50]} 36. Kc3 {[%clk 0:00:10]}  Ra2 {[%clk 0:00:51]} 37. Kc4 {[%clk 0:00:10]}  Rc2+ {[%clk 0:00:51]} 38. Kd3 {[%clk 0:00:10]}  Ra2 {[%clk 0:00:49]} 39. Rc1 {[%clk 0:00:07]}  Nxd5 {[%clk 0:00:49]} 40. Ke4 {[%clk 0:00:07]}  Nf6+ {[%clk 0:00:48]} 41. Kf5 {[%clk 0:00:07]}  Ne8 {[%clk 0:00:47]} 42. b6 {[%clk 0:00:04]}  cxb6 {[%clk 0:00:48]} 43. Bxb6 {[%clk 0:00:04]}  Rb2 {[%clk 0:00:49]} 44. Rc3 {[%clk 0:00:04]}  Ng7+ {[%clk 0:00:47]} 45. Ke4 {[%clk 0:00:05]}  Ke6 {[%clk 0:00:48]} 46. Kd3 {[%clk 0:00:02]}  Nf5 {[%clk 0:00:47]} 47. Kc4 {[%clk 0:00:02]}  d5+ {[%clk 0:00:46]} 48. Kb4 {[%clk 0:00:03]}  d4 {[%clk 0:00:46]} 49. Rd3 {[%clk 0:00:03]}  Kd5 {[%clk 0:00:46]} 50. f3 {[%clk 0:00:04]}  Rh2 {[%clk 0:00:42]} 51. Kb5 {[%clk 0:00:04]}  Rxh3 {[%clk 0:00:43]} 52. b4 {[%clk 0:00:04]}  Rh1 {[%clk 0:00:43]} 53. Bc7 {[%clk 0:00:03]}  Rc1 {[%clk 0:00:42]} 54. Be5 {[%clk 0:00:03]}  h5 {[%clk 0:00:42]} 55. Rd2 {[%clk 0:00:03]}  h4 {[%clk 0:00:40]} 56. Kb6 {[%clk 0:00:04]}  h3 {[%clk 0:00:40]} 57. b5 {[%clk 0:00:04]}  Rg1 {[%clk 0:00:36]} 58. Rh2 {[%clk 0:00:04]}  d3 {[%clk 0:00:35]} 59. Bc3 {[%clk 0:00:03]}  Rc1 {[%clk 0:00:32]} 60. Be5 {[%clk 0:00:02]}  Ng3 {[%clk 0:00:24]} 61. Rxh3 {[%clk 0:00:01]}  d2 {[%clk 0:00:24]} 62. Rh8 {[%clk 0:00:02]}  d1=Q {[%clk 0:00:24]} 63. Rd8+ {[%clk 0:00:03]}  Ke6 {[%clk 0:00:23]} 64. Rxd1 {[%clk 0:00:03]}  Rxd1 {[%clk 0:00:24]} 65. Ka7 {[%clk 0:00:03]}  Nf5 {[%clk 0:00:23]} 66. b6 {[%clk 0:00:04]}  Ne7 {[%clk 0:00:21]} 67. b7 {[%clk 0:00:04]}  Rb1 {[%clk 0:00:16]} 68. b8=Q {[%clk 0:00:03]}  Nc6+ {[%clk 0:00:16]} 69. Ka8 {[%clk 0:00:04]}  Nxb8 {[%clk 0:00:16]} 70. Bxb8 {[%clk 0:00:05]}  Kd7 {[%clk 0:00:17]} 71. Be5 {[%clk 0:00:04]}  Kc6 {[%clk 0:00:17]} 72. Ka7 {[%clk 0:00:03]}  Rb3 {[%clk 0:00:17]} 73. Ka8 {[%clk 0:00:02]}  Rxf3 {[%clk 0:00:18]} 74. Ka7 {[%clk 0:00:02]}  Rb3 {[%clk 0:00:19]} 75. Ka8 {[%clk 0:00:02]}  Kb6 {[%clk 0:00:19]} 76. Bd4+ {[%clk 0:00:02]}  Ka6 {[%clk 0:00:18]} 77. Be5 {[%clk 0:00:02]}  Rb4 {[%clk 0:00:16]} 78. Bd6 {[%clk 0:00:02]}  Rd4 {[%clk 0:00:15]} 79. Bc7 {[%clk 0:00:02]}  Rd7 {[%clk 0:00:15]} 80. Kb8 {[%clk 0:00:02]}  Rf7 {[%clk 0:00:14]} 81. Kc8 {[%clk 0:00:02]}  Kb5 {[%clk 0:00:15]} 82. Be5 {[%clk 0:00:02]}  Kc6 {[%clk 0:00:16]} 83. Kb8 {[%clk 0:00:01]}  Rf8+ {[%clk 0:00:15]} 84. Ka7 {[%clk 0:00:02]}  Rd8 {[%clk 0:00:16]} 85. Ka6 {[%clk 0:00:01]}  Rg8 {[%clk 0:00:17]} 86. Ka7 {[%clk 0:00:01]}  Rf8 {[%clk 0:00:16]} 87. Bb8 {[%clk 0:00:01]}  Rf7+ {[%clk 0:00:16]} 88. Ka8 {[%clk 0:00:02]}  Rf5 {[%clk 0:00:17]} 89. Ba7 {[%clk 0:00:02]}  Ra5 {[%clk 0:00:17]} 90. f5 {[%clk 0:00:01]}  Rd5 {[%clk 0:00:17]} 91. f6 {[%clk 0:00:01]}  Rd8+ {[%clk 0:00:17]} 92. Bb8 {[%clk 0:00:02]}  Rf8 {[%clk 0:00:17]} 93. f7 {[%clk 0:00:02]}  Rxf7 {[%clk 0:00:17]} 94. Ba7 {[%clk 0:00:03]}  Rd7 {[%clk 0:00:18]} 95. Bb8 {[%clk 0:00:03]}  Rd1 {[%clk 0:00:19]} 96. Ba7 {[%clk 0:00:04]}  Kd7 {[%clk 0:00:18]} 97. Bb8 {[%clk 0:00:04]}  Rb1 {[%clk 0:00:19]} 98. Ba7 {[%clk 0:00:04]}  Kc8 {[%clk 0:00:19]} 99. Bd4 {[%clk 0:00:02]}  Rb4 {[%clk 0:00:20]} 100. Bc5 {[%clk 0:00:02]}  Rb5 {[%clk 0:00:20]} 101. Ba7 {[%clk 0:00:02]}  Kc7 {[%clk 0:00:21]} 102. Be3 {[%clk 0:00:01]}  Kc6 {[%clk 0:00:22]} 103. Ba7 {[%clk 0:00:01]}  Rb1 {[%clk 0:00:23]} 104. Bb8 {[%clk 0:00:02]}  Kb6 {[%clk 0:00:22]} 105. Ba7+ {[%clk 0:00:02]}  Kc7 {[%clk 0:00:23]} 106. Bb8+ {[%clk 0:00:03]}  Rxb8+ {[%clk 0:00:22]} 0-1


[Site "https://www.chess.com"]

[Event "Titled Tuesday Blitz February 28 Early 2023"]
[White "Makarian, Rudik"]
[Black "Molina, Roberto Junio Brito"]
[WhiteFideId "44105681"]
[BlackFideId "2109450"]
[WhiteElo "2419"]
[BlackElo "2376"]
[Result "1-0"]
[Round "10"]
[TimeControl "180+2"]
[Date "2023.02.28"]
[WhiteClock "0:00:07"]
[BlackClock "0:00:02"]

1. d4 {[%clk 0:03:00]}  d5 {[%clk 0:02:57]} 2. c4 {[%clk 0:03:01]}  c6 {[%clk 0:02:57]} 3. Nf3 {[%clk 0:03:01]}  Nf6 {[%clk 0:02:57]} 4. Nc3 {[%clk 0:03:02]}  dxc4 {[%clk 0:02:56]} 5. a4 {[%clk 0:02:59]}  Bf5 {[%clk 0:02:56]} 6. Ne5 {[%clk 0:03:00]}  Nbd7 {[%clk 0:02:56]} 7. Nxc4 {[%clk 0:03:00]}  Nb6 {[%clk 0:02:56]} 8. Ne3 {[%clk 0:03:00]}  Bg6 {[%clk 0:02:54]} 9. a5 {[%clk 0:02:59]}  Nbd5 {[%clk 0:02:55]} 10. a6 {[%clk 0:02:59]}  b6 {[%clk 0:02:55]} 11. Nexd5 {[%clk 0:02:55]}  Nxd5 {[%clk 0:02:55]} 12. g3 {[%clk 0:02:56]}  e6 {[%clk 0:02:55]} 13. Bg2 {[%clk 0:02:56]}  Rc8 {[%clk 0:02:53]} 14. O-O {[%clk 0:02:56]}  Be7 {[%clk 0:02:53]} 15. e4 {[%clk 0:02:53]}  Nxc3 {[%clk 0:02:49]} 16. bxc3 {[%clk 0:02:54]}  O-O {[%clk 0:02:49]} 17. Qe2 {[%clk 0:02:36]}  b5 {[%clk 0:02:45]} 18. h4 {[%clk 0:02:34]}  h6 {[%clk 0:02:43]} 19. h5 {[%clk 0:02:27]}  Bh7 {[%clk 0:02:43]} 20. Rd1 {[%clk 0:02:28]}  Qd7 {[%clk 0:02:41]} 21. Be3 {[%clk 0:02:23]}  Rfd8 {[%clk 0:02:37]} 22. c4 {[%clk 0:02:06]}  Bf6 {[%clk 0:02:32]} 23. e5 {[%clk 0:02:01]}  Be7 {[%clk 0:02:30]} 24. d5 {[%clk 0:02:01]}  cxd5 {[%clk 0:02:26]} 25. cxd5 {[%clk 0:02:02]}  exd5 {[%clk 0:01:54]} 26. Rxd5 {[%clk 0:02:03]}  Qc7 {[%clk 0:01:39]} 27. Rxb5 {[%clk 0:01:59]}  Bd3 {[%clk 0:01:34]} 28. Qb2 {[%clk 0:01:53]}  Bxb5 {[%clk 0:01:30]} 29. Qxb5 {[%clk 0:01:54]}  Bg5 {[%clk 0:01:02]} 30. Bxg5 {[%clk 0:01:28]}  hxg5 {[%clk 0:01:03]} 31. e6 {[%clk 0:01:28]}  fxe6 {[%clk 0:00:56]} 32. Qxg5 {[%clk 0:01:25]}  Qc5 {[%clk 0:00:54]} 33. Qg6 {[%clk 0:01:22]}  Qe5 {[%clk 0:00:51]} 34. Rb1 {[%clk 0:01:15]}  Rd2 {[%clk 0:00:42]} 35. Be4 {[%clk 0:01:08]}  Kf8 {[%clk 0:00:19]} 36. Rb3 {[%clk 0:00:53]}  Rcd8 {[%clk 0:00:06]} 37. Rf3+ {[%clk 0:00:50]}  Ke7 {[%clk 0:00:06]} 38. Qf7+ {[%clk 0:00:14]}  Kd6 {[%clk 0:00:07]} 39. Rf4 {[%clk 0:00:14]}  Rd1+ {[%clk 0:00:06]} 40. Kg2 {[%clk 0:00:14]}  Rd7 {[%clk 0:00:06]} 41. Qf8+ {[%clk 0:00:14]}  Kc7 {[%clk 0:00:06]} 42. Qa8 {[%clk 0:00:14]}  Qc5 {[%clk 0:00:03]} 43. Rf8 {[%clk 0:00:12]}  Kd6 {[%clk 0:00:03]} 44. Qb8+ {[%clk 0:00:12]}  Qc7 {[%clk 0:00:03]} 45. Qb4+ {[%clk 0:00:11]}  Qc5 {[%clk 0:00:04]} 46. Qb2 {[%clk 0:00:11]}  Rd4 {[%clk 0:00:02]} 47. Bf3 {[%clk 0:00:10]}  Qc4 {[%clk 0:00:02]} 48. Rc8 {[%clk 0:00:08]}  Qd3 {[%clk 0:00:01]} 49. Rc6+ {[%clk 0:00:08]}  Ke7 {[%clk 0:00:02]} 50. Qb8 {[%clk 0:00:07]} 1-0


[Site "https://www.chess.com"]

[Event "Titled Tuesday Blitz February 28 Early 2023"]
[White "Moroni, Luca Jr"]
[Black "Yilmaz, Mustafa"]
[WhiteFideId "865834"]
[BlackFideId "6302718"]
[WhiteElo "2569"]
[BlackElo "2523"]
[Result "1-0"]
[Round "10"]
[TimeControl "180+2"]
[Date "2023.02.28"]
[WhiteClock "0:00:07"]
[BlackClock "0:00:01"]

1. d4 {[%clk 0:03:00]}  Nf6 {[%clk 0:03:00]} 2. Bf4 {[%clk 0:03:00]}  d6 {[%clk 0:02:59]} 3. e3 {[%clk 0:02:59]}  Nbd7 {[%clk 0:02:58]} 4. h3 {[%clk 0:02:59]}  g6 {[%clk 0:02:53]} 5. Nf3 {[%clk 0:02:58]}  Bg7 {[%clk 0:02:54]} 6. c4 {[%clk 0:02:58]}  O-O {[%clk 0:02:53]} 7. Nc3 {[%clk 0:02:59]}  b6 {[%clk 0:02:52]} 8. Be2 {[%clk 0:02:58]}  Bb7 {[%clk 0:02:53]} 9. O-O {[%clk 0:02:58]}  Ne4 {[%clk 0:02:53]} 10. Nxe4 {[%clk 0:02:56]}  Bxe4 {[%clk 0:02:54]} 11. Nd2 {[%clk 0:02:57]}  Bb7 {[%clk 0:02:53]} 12. Bf3 {[%clk 0:02:57]}  Qc8 {[%clk 0:02:48]} 13. Rc1 {[%clk 0:02:54]}  c5 {[%clk 0:02:36]} 14. Ne4 {[%clk 0:02:32]}  Nf6 {[%clk 0:02:10]} 15. Nxf6+ {[%clk 0:02:27]}  Bxf6 {[%clk 0:02:11]} 16. Bxb7 {[%clk 0:02:25]}  Qxb7 {[%clk 0:02:12]} 17. Qd3 {[%clk 0:02:16]}  Rfc8 {[%clk 0:02:08]} 18. b3 {[%clk 0:02:14]}  a6 {[%clk 0:01:55]} 19. d5 {[%clk 0:02:05]}  b5 {[%clk 0:01:55]} 20. e4 {[%clk 0:02:06]}  Rcb8 {[%clk 0:01:40]} 21. Rfe1 {[%clk 0:02:03]}  bxc4 {[%clk 0:01:38]} 22. Rxc4 {[%clk 0:02:03]}  Rd8 {[%clk 0:01:34]} 23. Rd1 {[%clk 0:01:38]}  Bd4 {[%clk 0:01:33]} 24. Be3 {[%clk 0:01:36]}  Be5 {[%clk 0:01:30]} 25. Bd2 {[%clk 0:01:29]}  Qd7 {[%clk 0:00:26]} 26. Bc3 {[%clk 0:01:26]}  Bxc3 {[%clk 0:00:26]} 27. Qxc3 {[%clk 0:01:27]}  e5 {[%clk 0:00:20]} 28. dxe6 {[%clk 0:01:25]}  Qxe6 {[%clk 0:00:20]} 29. Rd5 {[%clk 0:01:22]}  a5 {[%clk 0:00:16]} 30. Qd3 {[%clk 0:01:17]}  Qe7 {[%clk 0:00:15]} 31. Rc1 {[%clk 0:00:59]}  a4 {[%clk 0:00:14]} 32. Rd1 {[%clk 0:00:59]}  axb3 {[%clk 0:00:14]} 33. axb3 {[%clk 0:01:00]}  Rab8 {[%clk 0:00:14]} 34. e5 {[%clk 0:00:59]}  Qb7 {[%clk 0:00:13]} 35. exd6 {[%clk 0:00:54]}  Qxb3 {[%clk 0:00:10]} 36. Rxc5 {[%clk 0:00:28]}  Qxd3 {[%clk 0:00:08]} 37. Rxd3 {[%clk 0:00:29]}  Rb6 {[%clk 0:00:07]} 38. Rcd5 {[%clk 0:00:21]}  Rd7 {[%clk 0:00:06]} 39. g4 {[%clk 0:00:21]}  f6 {[%clk 0:00:06]} 40. f4 {[%clk 0:00:20]}  Rb2 {[%clk 0:00:06]} 41. Rd2 {[%clk 0:00:20]}  Rb3 {[%clk 0:00:05]} 42. Kg2 {[%clk 0:00:19]}  Kf7 {[%clk 0:00:06]} 43. f5 {[%clk 0:00:18]}  gxf5 {[%clk 0:00:05]} 44. gxf5 {[%clk 0:00:19]}  h5 {[%clk 0:00:05]} 45. R2d4 {[%clk 0:00:17]}  Ra3 {[%clk 0:00:04]} 46. Re4 {[%clk 0:00:15]}  Ra6 {[%clk 0:00:03]} 47. Re6 {[%clk 0:00:15]}  Ra3 {[%clk 0:00:04]} 48. Rd4 {[%clk 0:00:15]}  Ra5 {[%clk 0:00:01]} 49. Rf4 {[%clk 0:00:09]}  Rxf5 {[%clk 0:00:01]} 50. Rxf5 {[%clk 0:00:07]}  Kxe6 {[%clk 0:00:02]} 51. Rxh5 {[%clk 0:00:07]}  Rxd6 {[%clk 0:00:03]} 52. Kg3 {[%clk 0:00:08]}  Rd3+ {[%clk 0:00:03]} 53. Kf4 {[%clk 0:00:08]}  Rd4+ {[%clk 0:00:03]} 54. Ke3 {[%clk 0:00:08]}  Ra4 {[%clk 0:00:04]} 55. Rh8 {[%clk 0:00:08]}  Kf5 {[%clk 0:00:05]} 56. h4 {[%clk 0:00:08]}  Ra3+ {[%clk 0:00:05]} 57. Kf2 {[%clk 0:00:08]}  Kf4 {[%clk 0:00:06]} 58. h5 {[%clk 0:00:09]}  Ra2+ {[%clk 0:00:06]} 59. Kg1 {[%clk 0:00:09]}  f5 {[%clk 0:00:05]} 60. h6 {[%clk 0:00:09]}  Ra6 {[%clk 0:00:04]} 61. h7 {[%clk 0:00:09]}  Rh6 {[%clk 0:00:04]} 62. Kg2 {[%clk 0:00:09]}  Rh5 {[%clk 0:00:05]} 63. Kf2 {[%clk 0:00:09]}  Rh2+ {[%clk 0:00:05]} 64. Kg1 {[%clk 0:00:09]}  Rh4 {[%clk 0:00:05]} 65. Kf2 {[%clk 0:00:10]}  Rh6 {[%clk 0:00:05]} 66. Kg2 {[%clk 0:00:10]}  Rg6+ {[%clk 0:00:05]} 67. Kh3 {[%clk 0:00:07]}  Kf3 {[%clk 0:00:02]} 68. Kh4 {[%clk 0:00:07]}  Rg7 {[%clk 0:00:01]} 69. Kh5 {[%clk 0:00:07]} 1-0


[Site "https://www.chess.com"]

[Event "Titled Tuesday Blitz February 28 Early 2023"]
[White "Subelj, Jan"]
[Black "Bruzon Batista, Lazaro"]
[WhiteFideId "14618583"]
[BlackFideId "3503739"]
[WhiteElo "2480"]
[BlackElo "2709"]
[Result "0-1"]
[Round "10"]
[TimeControl "180+2"]
[Date "2023.02.28"]
[WhiteClock "0:01:14"]
[BlackClock "0:01:08"]

1. d4 {[%clk 0:03:00]}  Nf6 {[%clk 0:02:59]} 2. Nf3 {[%clk 0:02:59]}  e6 {[%clk 0:02:59]} 3. Bf4 {[%clk 0:02:59]}  b6 {[%clk 0:02:53]} 4. e3 {[%clk 0:02:58]}  c5 {[%clk 0:02:53]} 5. Be2 {[%clk 0:02:58]}  cxd4 {[%clk 0:02:51]} 6. exd4 {[%clk 0:02:59]}  Be7 {[%clk 0:02:51]} 7. O-O {[%clk 0:02:59]}  O-O {[%clk 0:02:51]} 8. Nbd2 {[%clk 0:02:57]}  Ba6 {[%clk 0:02:49]} 9. Bxa6 {[%clk 0:02:54]}  Nxa6 {[%clk 0:02:49]} 10. c3 {[%clk 0:02:53]}  Qc8 {[%clk 0:02:48]} 11. a4 {[%clk 0:02:50]}  Qb7 {[%clk 0:02:48]} 12. Nc4 {[%clk 0:02:47]}  Nc7 {[%clk 0:02:40]} 13. Bd6 {[%clk 0:02:32]}  Bxd6 {[%clk 0:02:38]} 14. Nxd6 {[%clk 0:02:33]}  Qc6 {[%clk 0:02:36]} 15. Nb5 {[%clk 0:02:32]}  Nxb5 {[%clk 0:02:34]} 16. axb5 {[%clk 0:02:32]}  Qxb5 {[%clk 0:02:34]} 17. Qc2 {[%clk 0:02:31]}  d6 {[%clk 0:02:31]} 18. Ra3 {[%clk 0:02:29]}  a5 {[%clk 0:02:30]} 19. Rb3 {[%clk 0:02:28]}  Qc6 {[%clk 0:02:30]} 20. Qe2 {[%clk 0:02:27]}  a4 {[%clk 0:02:29]} 21. Qb5 {[%clk 0:02:24]}  Rfc8 {[%clk 0:02:25]} 22. Qxc6 {[%clk 0:02:22]}  Rxc6 {[%clk 0:02:25]} 23. Rb5 {[%clk 0:02:23]}  h6 {[%clk 0:02:16]} 24. Ra1 {[%clk 0:02:23]}  a3 {[%clk 0:02:07]} 25. Ra2 {[%clk 0:02:03]}  Nd5 {[%clk 0:01:51]} 26. Rb3 {[%clk 0:02:02]}  b5 {[%clk 0:01:37]} 27. Rxb5 {[%clk 0:01:57]}  Rca6 {[%clk 0:01:19]} 28. c4 {[%clk 0:01:14]}  axb2 {[%clk 0:01:14]} 29. Raxb2 {[%clk 0:01:15]}  Ra1+ {[%clk 0:01:10]} 30. Rb1 {[%clk 0:01:14]}  Nc3 {[%clk 0:01:09]} 31. Rb8+ {[%clk 0:01:14]}  Kh7 {[%clk 0:01:08]} 0-1


[Site "https://www.chess.com"]

[Event "Titled Tuesday Blitz February 28 Early 2023"]
[White "Vokhidov, Shamsiddin"]
[Black "Manukyan, Sargis V."]
[WhiteFideId "14204223"]
[BlackFideId "13303465"]
[WhiteElo "2570"]
[BlackElo "2236"]
[Result "1-0"]
[Round "10"]
[TimeControl "180+2"]
[Date "2023.02.28"]
[WhiteClock "0:00:45"]
[BlackClock "0:00:02"]

1. e4 {[%clk 0:03:00]}  e6 {[%clk 0:02:56]} 2. d3 {[%clk 0:03:01]}  d5 {[%clk 0:02:53]} 3. Nd2 {[%clk 0:03:02]}  Nf6 {[%clk 0:02:53]} 4. e5 {[%clk 0:03:01]}  Nfd7 {[%clk 0:02:53]} 5. d4 {[%clk 0:03:02]}  c5 {[%clk 0:02:53]} 6. c3 {[%clk 0:03:03]}  Nc6 {[%clk 0:02:52]} 7. Ndf3 {[%clk 0:03:03]}  cxd4 {[%clk 0:02:31]} 8. cxd4 {[%clk 0:03:03]}  f6 {[%clk 0:02:32]} 9. exf6 {[%clk 0:03:01]}  Nxf6 {[%clk 0:02:31]} 10. Bd3 {[%clk 0:03:02]}  Bd6 {[%clk 0:02:30]} 11. Ne2 {[%clk 0:03:03]}  O-O {[%clk 0:02:29]} 12. O-O {[%clk 0:03:03]}  Bd7 {[%clk 0:02:26]} 13. Bf4 {[%clk 0:03:03]}  Bxf4 {[%clk 0:02:10]} 14. Nxf4 {[%clk 0:03:04]}  Ne4 {[%clk 0:02:10]} 15. Qc1 {[%clk 0:03:00]}  Qf6 {[%clk 0:01:53]} 16. Ne2 {[%clk 0:02:57]}  Be8 {[%clk 0:01:41]} 17. Qe3 {[%clk 0:02:41]}  Bh5 {[%clk 0:01:37]} 18. Ne5 {[%clk 0:02:40]}  Nxe5 {[%clk 0:01:00]} 19. dxe5 {[%clk 0:02:41]}  Qxe5 {[%clk 0:01:00]} 20. Ng3 {[%clk 0:02:33]}  Bg6 {[%clk 0:00:57]} 21. Bxe4 {[%clk 0:02:18]}  dxe4 {[%clk 0:00:55]} 22. h4 {[%clk 0:02:04]}  Qxb2 {[%clk 0:00:53]} 23. Rab1 {[%clk 0:02:01]}  Qxa2 {[%clk 0:00:52]} 24. Rxb7 {[%clk 0:02:01]}  Rf7 {[%clk 0:00:41]} 25. Rxf7 {[%clk 0:01:59]}  Bxf7 {[%clk 0:00:39]} 26. Nxe4 {[%clk 0:01:58]}  h6 {[%clk 0:00:34]} 27. Rc1 {[%clk 0:01:44]}  Qd5 {[%clk 0:00:31]} 28. Rc5 {[%clk 0:01:42]}  Qd1+ {[%clk 0:00:29]} 29. Kh2 {[%clk 0:01:42]}  a5 {[%clk 0:00:30]} 30. Qf4 {[%clk 0:01:27]}  a4 {[%clk 0:00:23]} 31. Rc7 {[%clk 0:01:23]}  Qh5 {[%clk 0:00:22]} 32. Nd6 {[%clk 0:01:07]}  Bg6 {[%clk 0:00:16]} 33. Nc4 {[%clk 0:01:04]}  Qf5 {[%clk 0:00:13]} 34. Qd4 {[%clk 0:01:02]}  Bf7 {[%clk 0:00:10]} 35. Nd6 {[%clk 0:01:02]}  Qd5 {[%clk 0:00:08]} 36. Qf4 {[%clk 0:00:49]}  e5 {[%clk 0:00:08]} 37. Qf5 {[%clk 0:00:47]}  Rf8 {[%clk 0:00:07]} 38. Nxf7 {[%clk 0:00:45]}  Rxf7 {[%clk 0:00:06]} 39. Rc8+ {[%clk 0:00:45]}  Rf8 {[%clk 0:00:02]} 40. Rxf8# {[%clk 0:00:45]} 1-0


[Site "https://www.chess.com"]

[Event "Titled Tuesday Blitz February 28 Early 2023"]
[White "Iskusnyh, Sergei"]
[Black "Andreikin, Dmitry"]
[WhiteFideId "4120027"]
[BlackFideId "4158814"]
[WhiteElo "2492"]
[BlackElo "2736"]
[Result "0-1"]
[Round "10"]
[TimeControl "180+2"]
[Date "2023.02.28"]
[WhiteClock "0:00:14"]
[BlackClock "0:00:09"]

1. d4 {[%clk 0:03:00]}  d5 {[%clk 0:02:57]} 2. c4 {[%clk 0:03:00]}  e6 {[%clk 0:02:57]} 3. Nf3 {[%clk 0:02:59]}  a6 {[%clk 0:02:57]} 4. Nbd2 {[%clk 0:02:56]}  Nf6 {[%clk 0:02:51]} 5. g3 {[%clk 0:02:55]}  c5 {[%clk 0:02:52]} 6. cxd5 {[%clk 0:02:52]}  exd5 {[%clk 0:02:42]} 7. Bg2 {[%clk 0:02:51]}  Nc6 {[%clk 0:02:42]} 8. O-O {[%clk 0:02:45]}  Bg4 {[%clk 0:02:41]} 9. Ne5 {[%clk 0:02:22]}  Be6 {[%clk 0:02:28]} 10. Nxc6 {[%clk 0:02:17]}  bxc6 {[%clk 0:02:29]} 11. dxc5 {[%clk 0:02:17]}  Bxc5 {[%clk 0:02:30]} 12. Qc2 {[%clk 0:02:17]}  Bb6 {[%clk 0:02:16]} 13. Qxc6+ {[%clk 0:02:12]}  Bd7 {[%clk 0:02:17]} 14. Qd6 {[%clk 0:02:06]}  Bb5 {[%clk 0:02:15]} 15. Qe5+ {[%clk 0:01:51]}  Qe7 {[%clk 0:02:14]} 16. Qxe7+ {[%clk 0:01:33]}  Kxe7 {[%clk 0:02:15]} 17. a4 {[%clk 0:01:32]}  Bd7 {[%clk 0:02:10]} 18. b3 {[%clk 0:01:29]}  Rhc8 {[%clk 0:01:59]} 19. Ba3+ {[%clk 0:01:29]}  Bc5 {[%clk 0:02:00]} 20. Bb2 {[%clk 0:00:46]}  Be6 {[%clk 0:01:54]} 21. Nf3 {[%clk 0:00:45]}  Rab8 {[%clk 0:01:48]} 22. Nd4 {[%clk 0:00:37]}  Bxd4 {[%clk 0:01:46]} 23. Bxd4 {[%clk 0:00:37]}  Rxb3 {[%clk 0:01:46]} 24. a5 {[%clk 0:00:32]}  Rc2 {[%clk 0:01:39]} 25. Bf3 {[%clk 0:00:29]}  Ne4 {[%clk 0:01:07]} 26. Rfb1 {[%clk 0:00:29]}  Nd2 {[%clk 0:00:58]} 27. Rxb3 {[%clk 0:00:24]}  Nxb3 {[%clk 0:00:59]} 28. Rd1 {[%clk 0:00:25]}  Nxd4 {[%clk 0:00:57]} 29. Rxd4 {[%clk 0:00:24]}  Rc5 {[%clk 0:00:42]} 30. Ra4 {[%clk 0:00:20]}  Kd6 {[%clk 0:00:35]} 31. Ra1 {[%clk 0:00:19]}  d4 {[%clk 0:00:30]} 32. Be4 {[%clk 0:00:19]}  Bc4 {[%clk 0:00:29]} 33. Bf3 {[%clk 0:00:18]}  f5 {[%clk 0:00:27]} 34. h4 {[%clk 0:00:18]}  g6 {[%clk 0:00:23]} 35. Rd1 {[%clk 0:00:17]}  Ke5 {[%clk 0:00:22]} 36. Ra1 {[%clk 0:00:18]}  h6 {[%clk 0:00:22]} 37. Kg2 {[%clk 0:00:17]}  g5 {[%clk 0:00:22]} 38. hxg5 {[%clk 0:00:17]}  hxg5 {[%clk 0:00:23]} 39. g4 {[%clk 0:00:17]}  fxg4 {[%clk 0:00:22]} 40. Bxg4 {[%clk 0:00:17]}  Kf4 {[%clk 0:00:22]} 41. Bf3 {[%clk 0:00:17]}  g4 {[%clk 0:00:22]} 42. Bb7 {[%clk 0:00:17]}  Bxe2 {[%clk 0:00:21]} 43. Ra4 {[%clk 0:00:16]}  Ke5 {[%clk 0:00:17]} 44. Kg3 {[%clk 0:00:16]}  Rc3+ {[%clk 0:00:15]} 45. Kg2 {[%clk 0:00:16]}  d3 {[%clk 0:00:13]} 46. Re4+ {[%clk 0:00:15]}  Kf6 {[%clk 0:00:09]} 47. Bxa6 {[%clk 0:00:14]}  Bf3+ {[%clk 0:00:09]} 0-1


[Site "https://www.chess.com"]